bitfinex-derivatives/quotes_ETHF0:USTF0_20260119
["timestamp","ask_amount","ask_price","bid_price","bid_amount"]
[1768803198734,1.12431254,3199.2,3197.8,3.56897171]
[1768803199037,1.03629567,3199.1,3197.8,3.56897171]
[1768803199234,1.03629567,3199.0,3197.8,3.56897171]
[1768803199533,1.03629567,3198.9,3197.8,3.56897171]
[1768803199733,1.03629567,3198.8,3197.8,3.56897171]
[1768803200037,1.12431254,3199.2,3197.8,3.56897171]
[1768803200239,1.03658101,3199.1,3197.8,3.56897171]
[1768803200438,1.03658101,3199.0,3197.8,3.56897171]
[1768803200637,1.03658101,3198.9,3197.8,3.56897171]
[1768803200834,1.03658101,3198.8,3197.8,3.56897171]
[1768803201025,1.12431254,3199.2,3197.8,3.56897171]
[1768803201229,1.0367529,3199.1,3197.8,3.56897171]
[1768803201429,1.0367529,3199.0,3197.8,3.56897171]
[1768803201635,1.0367529,3198.9,3197.8,3.56897171]
[1768803201834,1.0367529,3198.8,3197.8,3.56897171]
[1768803202032,1.12431254,3199.2,3197.8,3.56897171]
[1768803202230,2.15782782,3199.1,3197.8,3.56897171]
[1768803203340,2.15782782,3199.1,3197.9,1.793]
[1768803204242,1.03667493,3199.0,3197.9,1.793]
[1768803204540,1.03667493,3198.9,3197.9,1.793]
[1768803204742,1.03667493,3198.8,3197.9,1.793]
[1768803204938,1.03667493,3198.7,3197.9,1.793]
[1768803205138,1.12115289,3199.0,3197.9,1.793]
[1768803205535,1.03767134,3198.9,3197.9,1.793]
[1768803205736,1.03767134,3198.8,3197.9,1.793]
[1768803206043,1.03767134,3198.7,3197.9,1.793]
[1768803206245,1.12115289,3199.1,3197.9,1.793]
[1768803206841,1.12115289,3199.0,3197.9,1.793]
[1768803207143,3.51376561,3198.8,3197.7,0.00244832]
[1768803207339,3.51376561,3198.6,3197.7,0.00244832]
[1768803207544,1.03766578,3198.5,3197.7,0.00244832]
[1768803207843,1.03766578,3198.4,3197.7,0.00244832]
[1768803208043,1.12115289,3198.8,3197.7,0.00244832]
[1768803208343,2.15871594,3198.8,3197.7,0.00244832]
[1768803208544,1.03756305,3198.7,3197.7,0.00244832]
[1768803208752,1.03756305,3198.6,3197.7,0.00244832]
[1768803209050,1.03756305,3198.5,3197.7,1.79544832]
[1768803209247,1.03756305,3198.4,3197.7,1.79544832]
[1768803209548,1.12115289,3198.8,3197.7,1.79544832]
[1768803210744,2.15886339,3198.9,3197.7,1.79544832]
[1768803211044,1.0377105,3198.8,3198.0,1.0432856]
[1768803211246,1.0377105,3198.7,3198.0,1.0432856]
[1768803211443,1.0377105,3198.6,3198.0,1.0432856]
[1768803211649,1.12115289,3199.0,3198.0,1.0432856]
[1768803212151,2.15889706,3199.0,3198.0,1.0432856]
[1768803212345,1.03774417,3198.9,3198.0,1.0432856]
[1768803212546,1.03774417,3198.8,3198.0,1.0432856]
[1768803212747,1.03774417,3198.7,3197.9,1.0432856]
[1768803213046,1.03774417,3198.6,3197.9,1.0432856]
[1768803213352,1.12115289,3199.0,3197.9,1.0432856]
[1768803214960,1.12115289,3199.0,3198.2,1.0432856]
[1768803215159,3.51376561,3198.6,3197.7,0.00244832]
[1768803215361,1.0432856,3198.4,3197.7,0.00244832]
[1768803215562,1.03809336,3198.3,3197.7,0.00244832]
[1768803216058,4.55185897,3198.2,3197.2,1.793]
[1768803216259,1.03809336,3198.1,3197.2,1.793]
[1768803217060,1.03809336,3198.1,3197.2,1.79557337]
[1768803217259,3.51376561,3198.2,3197.2,1.79557337]
[1768803218958,3.51376561,3198.2,3197.2,0.00257337]
[1768803219561,3.51376561,3198.2,3197.2,1.04585897]
[1768803221163,3.51376561,3198.2,3197.2,0.00257337]
[1768803221370,3.51376561,3198.2,3197.2,1.04585897]
[1768803221568,3.31888487,3198.7,3197.8,1.0432856]
[1768803221861,1.03704571,3198.6,3197.7,1.0432856]
[1768803222164,1.03704571,3198.5,3197.7,1.0432856]
[1768803222366,1.03704571,3198.4,3197.7,1.0432856]
[1768803222663,1.03704571,3198.3,3197.7,1.0432856]
[1768803222854,3.31888487,3198.7,3197.2,1.04585897]
[1768803223055,1.03689641,3198.6,3197.5,1.0432856]
[1768803223258,1.03689641,3198.5,3197.5,1.0432856]
[1768803223456,1.03689641,3198.4,3197.5,1.0432856]
[1768803223652,1.03689641,3198.3,3197.5,1.0432856]
[1768803223867,3.31888487,3198.7,3197.5,1.0432856]
[1768803224067,1.03684379,3198.6,3197.5,1.0432856]
[1768803224266,1.03684379,3198.5,3197.5,1.0432856]
[1768803224567,1.03684379,3198.4,3197.5,1.0432856]
[1768803224766,3.31888487,3198.7,3197.5,1.0432856]
[1768803224969,1.03680606,3198.6,3197.5,1.0432856]
[1768803225270,1.03680606,3198.5,3197.5,1.0432856]
[1768803225569,1.03680606,3198.4,3197.5,1.0432856]
[1768803225873,1.03680606,3198.3,3197.5,1.0432856]
[1768803226170,4.44003776,3198.7,3197.5,1.0432856]
[1768803226372,3.31888487,3198.5,3197.6,1.793]
[1768803226563,1.03675287,3198.4,3197.6,1.793]
[1768803226764,1.03669292,3198.3,3197.6,1.793]
[1768803226960,3.31888487,3198.5,3197.6,1.793]
[1768803227163,1.03668625,3198.4,3197.6,1.793]
[1768803227359,3.31888487,3198.5,3197.2,1.04585897]
[1768803227360,1.03668625,3198.3,3197.2,1.04585897]
[1768803227562,1.03668625,3198.2,3197.5,1.793]
[1768803227863,3.31888487,3198.5,3197.2,1.04585897]
[1768803228168,3.31888487,3198.3,3197.2,1.04585897]
[1768803228370,1.03647879,3198.2,3197.3,1.793]
[1768803228563,3.31888487,3198.3,3197.3,1.793]
[1768803228763,1.03642986,3198.2,3197.3,1.793]
[1768803228964,3.31888487,3198.3,3197.3,1.793]
[1768803229266,1.03642694,3198.2,3197.3,1.793]
[1768803229467,3.31888487,3198.3,3197.3,1.793]
[1768803229666,1.03650609,3198.2,3197.3,1.793]
[1768803229973,3.31888487,3198.3,3197.3,1.793]
[1768803230164,1.03650526,3198.2,3197.3,1.793]
[1768803230360,3.31888487,3198.7,3197.2,1.04585897]
[1768803230670,1.03657246,3198.6,3197.7,1.0432856]
[1768803230863,1.03657246,3198.5,3197.7,1.0432856]
[1768803231171,1.03657246,3198.4,3197.5,1.0432856]
[1768803231372,3.31888487,3198.7,3197.5,1.0432856]
[1768803231560,1.03662863,3198.6,3197.2,0.00257337]
[1768803231759,1.03662863,3198.5,3197.5,1.0432856]
[1768803231960,1.03662863,3198.4,3197.5,1.0432856]
[1768803232263,3.31888487,3198.7,3197.5,1.0432856]
[1768803232464,1.03534011,3198.6,3197.5,1.0432856]
[1768803232664,1.03534011,3198.5,3197.5,1.0432856]
[1768803232864,3.31888487,3198.7,3197.5,1.0432856]
[1768803233065,1.03536107,3198.6,3197.5,1.0432856]
[1768803233260,1.03536107,3198.5,3197.3,1.793]
[1768803233570,3.31888487,3198.7,3197.7,1.0432856]
[1768803233765,1.03546239,3198.6,3197.7,1.0432856]
[1768803233966,1.03546239,3198.5,3197.7,1.0432856]
[1768803234161,3.31888487,3198.7,3197.7,1.0432856]
[1768803234375,1.03559095,3198.6,3197.7,1.0432856]
[1768803234574,1.03559095,3198.5,3197.7,1.0432856]
[1768803234774,3.31888487,3198.7,3197.7,1.0432856]
[1768803234975,1.03559011,3198.6,3197.7,1.0432856]
[1768803235176,3.31888487,3198.7,3197.7,1.0432856]
[1768803235177,1.03559011,3198.5,3197.7,1.0432856]
[1768803235474,3.31888487,3198.7,3197.7,1.0432856]
[1768803235672,1.03572128,3198.6,3197.7,1.0432856]
[1768803235875,1.03572128,3198.5,3197.7,1.0432856]
[1768803236177,3.31888487,3198.7,3197.7,1.0432856]
[1768803236473,1.0357595,3198.6,3197.7,1.0432856]
[1768803236673,1.0357595,3198.5,3197.7,1.0432856]
[1768803236875,3.31888487,3198.7,3197.7,1.0432856]
[1768803237073,1.03588888,3198.6,3197.7,1.0432856]
[1768803237272,1.03588888,3198.5,3197.7,1.0432856]
[1768803237569,3.31888487,3198.7,3197.7,1.0432856]
[1768803237876,1.03595978,3198.6,3197.7,1.0432856]
[1768803238068,3.31888487,3198.7,3197.7,1.0432856]
[1768803238268,1.03596191,3198.6,3197.7,1.0432856]
[1768803238468,1.03598796,3198.5,3197.7,1.0432856]
[1768803238774,3.31888487,3198.7,3197.7,1.0432856]
[1768803238974,1.03598737,3198.6,3197.7,1.0432856]
[1768803239271,3.31888487,3198.7,3197.7,1.0432856]
[1768803239272,1.03598737,3198.5,3197.7,1.0432856]
[1768803239471,3.31888487,3198.7,3197.7,1.0432856]
[1768803239672,1.03601236,3198.6,3197.7,1.0432856]
[1768803239867,1.03601236,3198.5,3197.7,1.0432856]
[1768803240069,3.31888487,3198.7,3197.7,1.0432856]
[1768803240265,1.03601172,3198.6,3197.7,1.0432856]
[1768803240471,1.03601172,3198.6,3197.3,1.793]
[1768803240472,1.03601172,3198.5,3198.0,1.0432856]
[1768803240676,1.12115289,3199.0,3198.0,1.0432856]
[1768803240981,1.03610519,3198.9,3198.2,1.0432856]
[1768803241278,1.03610519,3198.8,3198.2,1.0432856]
[1768803241475,3.4414608,3199.1,3198.2,1.0432856]
[1768803241669,1.0360211,3199.0,3198.2,1.0432856]
[1768803241967,1.0360211,3198.9,3198.2,1.0432856]
[1768803242169,0.00315965,3199.2,3198.5,1.0432856]
[1768803242372,1.03580466,3199.1,3198.3,1.0432856]
[1768803242571,1.03580466,3199.0,3198.3,1.0432856]
[1768803242771,1.03580466,3198.9,3198.3,1.0432856]
[1768803242971,0.00315965,3199.2,3198.3,2.8352856]
[1768803243171,1.03588962,3199.1,3198.3,1.792]
[1768803243370,1.03588962,3199.0,3198.3,1.792]
[1768803243572,1.03588962,3198.9,3198.3,1.792]
[1768803243782,0.00315965,3199.2,3198.3,1.792]
[1768803243984,1.0357928,3199.1,3198.2,1.0432856]
[1768803244280,1.0357928,3199.0,3198.3,1.792]
[1768803244579,1.0357928,3198.9,3198.3,1.792]
[1768803244778,0.00315965,3199.2,3198.3,1.792]
[1768803244981,1.03569921,3199.1,3198.3,1.0432856]
[1768803245178,1.03569921,3199.0,3198.4,1.792]
[1768803245472,0.00315965,3199.2,3198.4,1.792]
[1768803245678,1.03550738,3199.1,3198.4,1.792]
[1768803245980,1.03550738,3199.0,3198.4,1.792]
[1768803246275,0.00315965,3199.2,3198.4,1.792]
[1768803246475,1.03536412,3199.1,3198.4,1.792]
[1768803246677,1.03536412,3199.0,3198.4,1.792]
[1768803246878,0.00315965,3199.2,3198.4,2.8352856]
[1768803247080,1.03533871,3199.1,3198.4,1.792]
[1768803247381,0.00315965,3199.2,3198.4,1.79669115]
[1768803247580,1.03517961,3199.1,3198.4,1.79669115]
[1768803247780,0.00315965,3199.2,3198.4,1.79669115]
[1768803247981,1.0351654,3199.1,3198.4,1.79669115]
[1768803248186,0.00315965,3199.2,3198.4,1.79669115]
[1768803248385,1.03503451,3199.1,3198.4,1.79669115]
[1768803248581,0.00315965,3199.2,3198.4,1.79669115]
[1768803248782,1.03503503,3199.1,3198.4,1.79669115]
[1768803248981,0.00315965,3199.2,3198.4,1.79669115]
[1768803249183,1.03496643,3199.1,3198.4,1.79669115]
[1768803249380,0.00315965,3199.2,3198.4,1.79669115]
[1768803249579,1.03480324,3199.1,3198.4,1.79669115]
[1768803249781,0.00315965,3199.2,3198.4,1.79669115]
[1768803249980,1.0347984,3199.1,3198.4,1.79669115]
[1768803250180,0.00315965,3199.2,3198.4,1.79669115]
[1768803250381,1.03474983,3199.1,3198.4,1.79669115]
[1768803250685,0.00315965,3199.2,3198.4,1.79669115]
[1768803250890,1.0347517,3199.1,3198.4,1.79669115]
[1768803251078,0.00315965,3199.2,3198.4,1.79669115]
[1768803251279,1.03475417,3199.1,3198.4,1.79669115]
[1768803251479,0.00315965,3199.2,3198.4,1.79669115]
[1768803251781,1.03470275,3199.1,3198.4,1.79669115]
[1768803251980,0.00315965,3199.2,3198.4,1.79669115]
[1768803252177,1.03470342,3199.1,3198.4,1.79669115]
[1768803252382,0.00315965,3199.2,3198.4,1.79669115]
[1768803252691,1.03466273,3199.1,3198.4,2.83997675]
[1768803252883,0.00315965,3199.2,3198.4,2.83997675]
[1768803253082,1.03454841,3199.1,3198.4,2.83997675]
[1768803253295,0.00315965,3199.2,3198.4,2.83997675]
[1768803253493,1.03453526,3199.1,3198.4,2.83997675]
[1768803253684,0.00315965,3199.2,3198.4,2.83997675]
[1768803253987,1.03453528,3199.1,3198.4,2.83997675]
[1768803254182,0.00315965,3199.2,3198.4,2.83997675]
[1768803258287,1.03470196,3199.1,3198.4,2.83997675]
[1768803258486,0.00315965,3199.2,3198.4,2.83997675]
[1768803258686,1.03470199,3199.1,3198.4,2.83997675]
[1768803258886,0.00315965,3199.2,3198.4,2.83997675]
[1768803259184,1.03470196,3199.1,3198.4,2.83997675]
[1768803259380,0.00315965,3199.2,3198.4,2.83997675]
[1768803259582,1.03487583,3199.1,3198.4,2.83997675]
[1768803259785,0.00315965,3199.2,3198.4,2.83997675]
[1768803259992,1.0348754,3199.1,3198.4,2.83997675]
[1768803260194,0.00315965,3199.2,3198.4,2.83997675]
[1768803261389,0.00315965,3199.2,3198.8,1.0432856]
[1768803261590,3.4414608,3199.5,3198.8,1.0432856]
[1768803261789,1.03324519,3199.4,3198.8,1.0432856]
[1768803262084,1.12115289,3199.8,3198.8,1.0432856]
[1768803262293,3.4414608,3200.7,3199.7,1.0432856]
[1768803262587,4.46221846,3200.6,3199.7,0.00294495]
[1768803262786,1.02075766,3200.5,3199.7,0.00294495]
[1768803263094,3.4730078,3200.3,3199.3,1.792]
[1768803263294,4.49376546,3200.2,3199.3,1.792]
[1768803263493,1.02075766,3200.1,3199.3,1.792]
[1768803263694,3.4730078,3200.2,3199.3,1.792]
[1768803263890,1.0203996,3200.1,3199.3,1.792]
[1768803264085,3.4730078,3200.2,3199.3,1.7943463]
[1768803264287,1.0204001,3200.1,3199.3,1.7943463]
[1768803264584,3.4730078,3200.2,3199.3,0.0023463]
[1768803264784,1.02013011,3200.1,3199.3,0.0023463]
[1768803264985,3.4730078,3200.2,3199.3,0.0023463]
[1768803265285,1.02012958,3200.1,3199.3,0.0023463]
[1768803265484,3.4730078,3200.2,3199.3,0.0023463]
[1768803265689,1.01993479,3200.1,3199.3,0.0023463]
[1768803265890,3.4730078,3200.2,3199.3,0.0023463]
[1768803266091,1.01993496,3200.1,3199.3,0.0023463]
[1768803266291,3.4730078,3200.2,3199.3,0.0023463]
[1768803266496,1.01981162,3200.1,3199.3,0.0023463]
[1768803266696,3.4730078,3200.2,3199.3,0.0023463]
[1768803266995,1.01981145,3200.1,3199.3,0.0023463]
[1768803267191,3.4730078,3200.2,3199.3,0.0023463]
[1768803267393,1.01975174,3200.1,3199.3,0.0023463]
[1768803267695,3.4730078,3200.2,3199.3,0.0023463]
[1768803267894,1.01975137,3200.1,3199.3,0.0023463]
[1768803268093,3.4730078,3200.2,3199.3,0.0023463]
[1768803268295,1.01975112,3200.1,3199.3,0.0023463]
[1768803268490,3.4730078,3200.2,3199.3,0.0023463]
[1768803268693,1.01968544,3200.1,3199.3,0.0023463]
[1768803268889,3.4730078,3200.2,3199.3,0.0023463]
[1768803269085,1.0432856,3199.9,3199.3,0.0023463]
[1768803269296,3.4730078,3200.1,3199.3,0.0023463]
[1768803270596,4.5162934,3200.5,3199.3,0.0023463]
[1768803270797,1.01958779,3200.4,3199.3,0.0023463]
[1768803270998,1.01958779,3200.3,3199.3,0.0023463]
[1768803271291,1.01958779,3200.2,3199.3,0.0023463]
[1768803271488,3.4730078,3200.5,3199.3,0.0023463]
[1768803271682,1.01952606,3200.4,3199.3,0.0023463]
[1768803271882,1.01952606,3200.3,3199.3,0.0023463]
[1768803272098,1.01952606,3200.2,3199.3,0.0023463]
[1768803272290,3.4730078,3200.5,3199.3,0.0023463]
[1768803272589,1.01945434,3200.4,3199.3,0.0023463]
[1768803272790,3.4730078,3200.5,3199.3,0.0023463]
[1768803272791,1.01945434,3200.3,3199.3,0.0023463]
[1768803272993,1.01945434,3200.2,3199.3,0.0023463]
[1768803273192,3.4730078,3200.5,3199.3,0.0023463]
[1768803273394,1.01940713,3200.4,3199.3,0.0023463]
[1768803273593,3.4730078,3199.9,3198.1,3.43789716]
[1768803273789,3.4730078,3199.1,3197.1,0.15646]
[1768803273991,3.4730078,3198.9,3197.1,1.94746]
[1768803274187,3.4730078,3198.7,3197.1,1.94746]
[1768803274784,3.4730078,3198.7,3197.1,1.95128219]
[1768803275190,0.00469115,3198.2,3197.1,1.95128219]
[1768803275392,0.00833556,3198.2,3197.1,1.95128219]
[1768803279999,0.00833556,3198.2,3197.1,5.01423772]
[1768803280302,3.28917417,3199.2,3197.4,3.06295553]
[1768803280600,4.30577212,3199.1,3197.6,0.15643]
[1768803280796,1.01659795,3199.0,3197.6,0.15643]
[1768803281196,1.02052882,3199.0,3197.6,0.15643]
[1768803281500,0.00393087,3199.0,3197.6,0.15643]
[1768803282490,0.00393087,3199.0,3197.6,3.21938553]
[1768803282689,3.29310504,3199.0,3197.7,1.791]
[1768803282893,3.29310504,3199.0,3197.3,0.00469115]
[1768803282894,4.33173619,3198.6,3197.3,0.00469115]
[1768803283104,3.28917417,3198.5,3197.4,1.791]
[1768803287013,4.33566706,3199.0,3197.4,1.791]
[1768803287204,1.01505929,3198.9,3197.4,1.791]
[1768803287409,3.29310504,3199.0,3197.4,1.791]
[1768803287605,1.01494486,3198.9,3197.4,1.791]
[1768803287912,3.29310504,3199.0,3197.4,6.08595553]
[1768803289305,0.00393087,3199.0,3197.6,3.21938553]
[1768803289608,0.00393087,3199.0,3197.7,3.06295553]
[1768803289810,0.00393087,3199.0,3197.7,3.21938553]
[1768803290111,0.00393087,3199.0,3197.9,3.06295553]
[1768803290312,3.28917417,3199.8,3198.1,3.06295553]
[1768803291314,3.29153549,3199.8,3198.1,3.06295553]
[1768803292211,3.29153549,3199.8,3197.9,0.15642]
[1768803292506,4.02126238,3199.2,3198.0,4.919]
[1768803292712,2.97870036,3199.1,3197.8,3.128]
[1768803293013,2.97870036,3199.1,3197.9,1.791]
[1768803293512,2.97870036,3198.7,3197.6,1.791]
[1768803294305,2.97870036,3199.3,3197.6,1.791]
[1768803294911,2.97870036,3199.3,3197.4,3.00952171]
[1768803295102,2.97870036,3199.3,3197.3,0.16114115]
[1768803295311,2.97870036,3198.9,3197.4,4.919]
[1768803297223,2.97870036,3198.9,3197.3,0.16114115]
[1768803297410,2.97870036,3198.9,3197.4,4.919]
[1768803299813,2.97870036,3198.9,3197.3,0.16114115]
[1768803300014,2.97870036,3198.9,3197.4,1.791]
[1768803301817,2.97870036,3198.7,3197.5,1.791]
[1768803302220,2.97870036,3198.5,3197.5,1.791]
[1768803303420,2.97870036,3198.5,3197.3,0.00469115]
[1768803303628,2.97870036,3198.3,3197.3,0.00469115]
[1768803305915,5.03487303,3198.2,3197.3,0.00469115]
[1768803306120,5.03487303,3198.2,3196.2,3.00952171]
[1768803306121,2.97870036,3198.0,3196.5,1.791]
[1768803306321,2.97870036,3197.8,3196.5,1.791]
[1768803307230,0.00469115,3198.1,3196.5,2.83632864]
[1768803307421,1.01256574,3198.0,3196.5,1.79376662]
[1768803307622,1.01256574,3197.9,3196.5,1.79376662]
[1768803307821,0.00469115,3198.1,3196.5,1.79376662]
[1768803308028,1.0124287,3198.0,3196.5,4.80328833]
[1768803308222,0.00469115,3198.1,3196.8,4.05208373]
[1768803309030,0.00469115,3198.1,3196.8,3.00952171]
[1768803310020,1.67720024,3198.9,3196.8,3.00952171]
[1768803310021,1.11626351,3198.9,3196.8,3.16599171]
[1768803310225,1.01203561,3198.8,3197.2,3.00952171]
[1768803310426,1.01203561,3198.7,3197.2,3.00952171]
[1768803310623,1.01203561,3198.6,3197.2,3.00952171]
[1768803310830,1.11626351,3199.0,3197.2,3.00952171]
[1768803311016,1.01196643,3198.9,3197.2,3.00952171]
[1768803311220,1.01196643,3198.8,3197.2,3.00952171]
[1768803311426,1.01196643,3198.7,3197.2,3.00952171]
[1768803311721,4.6559006,3199.2,3197.2,3.00952171]
[1768803311722,4.09496387,3199.2,3197.2,3.00952171]
[1768803311928,1.0104394,3199.1,3197.2,3.00952171]
[1768803312229,1.0104394,3199.0,3197.2,3.00952171]
[1768803312423,1.0104394,3198.9,3197.2,3.00952171]
[1768803312619,1.0104394,3198.8,3197.2,3.00952171]
[1768803312828,4.09496387,3199.2,3197.2,3.00952171]
[1768803313024,1.00989672,3199.1,3197.2,3.00952171]
[1768803313219,1.00989672,3199.0,3197.2,3.00952171]
[1768803313420,1.00989672,3198.9,3197.2,3.16597171]
[1768803313620,4.09496387,3199.4,3197.2,3.16597171]
[1768803313827,2.97870036,3199.2,3197.2,3.16597171]
[1768803314030,3.98835652,3199.1,3197.2,3.16597171]
[1768803314327,1.00965616,3199.0,3197.2,3.16597171]
[1768803314529,2.97870036,3199.1,3197.3,4.918]
[1768803314726,3.98827274,3199.0,3197.3,4.918]
[1768803314927,2.97870036,3199.0,3197.3,4.918]
[1768803316029,1.11626351,3199.4,3197.4,3.00952171]
[1768803316225,2.97870036,3199.2,3197.4,3.00952171]
[1768803316429,4.09496387,3198.8,3197.1,0.00469115]
[1768803316625,2.97870036,3198.6,3197.1,0.00469115]
[1768803316934,2.97870036,3198.4,3197.1,0.00469115]
[1768803317235,3.98906889,3198.3,3197.1,0.00469115]
[1768803317432,2.97870036,3198.3,3197.1,0.00469115]
[1768803320827,2.97870036,3198.1,3197.1,0.00469115]
[1768803325338,2.86338176,3198.6,3197.1,0.00469115]
[1768803325528,1.00925799,3198.5,3197.1,0.00469115]
[1768803325829,1.00925799,3198.4,3197.2,4.918]
[1768803326024,2.86338176,3198.6,3197.2,4.918]
[1768803326225,1.00938098,3198.5,3197.2,4.918]
[1768803326421,1.00938098,3198.4,3197.2,4.918]
[1768803326630,2.86338176,3198.6,3197.2,4.918]
[1768803326830,1.00940718,3198.5,3197.2,4.918]
[1768803327032,1.00940718,3198.4,3197.2,4.918]
[1768803327334,2.86338176,3198.6,3197.2,4.918]
[1768803331039,2.86338176,3199.0,3197.2,7.83953787]
[1768803331240,1.01096117,3198.9,3197.3,2.92153787]
[1768803331431,1.01096117,3198.8,3197.3,2.92153787]
[1768803331626,1.01096117,3198.7,3197.3,2.92153787]
[1768803331839,2.86338176,3199.0,3197.3,2.92153787]
[1768803332036,1.0110521,3198.9,3197.3,2.92153787]
[1768803332238,1.0110521,3198.8,3197.3,2.92153787]
[1768803332436,2.86338176,3199.0,3197.3,2.92153787]
[1768803332637,1.01108459,3198.9,3197.3,2.92153787]
[1768803332936,1.01108459,3198.8,3197.3,2.92153787]
[1768803333241,2.86338176,3199.0,3197.3,2.92153787]
[1768803333538,1.01105586,3198.9,3197.3,2.92153787]
[1768803333738,1.01105586,3198.8,3197.3,2.92153787]
[1768803333939,2.86338176,3199.0,3197.4,4.918]
[1768803334140,1.01105738,3198.9,3197.4,4.918]
[1768803334342,1.01105738,3198.8,3197.4,4.918]
[1768803334643,2.86338176,3199.0,3197.4,4.918]
[1768803334837,1.0109618,3198.9,3197.4,4.918]
[1768803335037,1.0109618,3198.8,3197.4,4.918]
[1768803335340,1.01098392,3198.7,3197.4,4.918]
[1768803335536,2.86338176,3199.0,3197.4,4.918]
[1768803335738,1.01098682,3198.9,3197.4,4.918]
[1768803336038,1.01098682,3198.8,3197.4,4.918]
[1768803336238,1.01098682,3198.7,3197.4,4.918]
[1768803336438,2.86338176,3199.0,3197.4,4.918]
[1768803336642,1.01110071,3198.9,3197.4,4.918]
[1768803336841,1.01110071,3198.8,3197.4,4.918]
[1768803337042,1.01110071,3198.7,3197.4,4.918]
[1768803337249,2.86338176,3199.0,3197.4,4.918]
[1768803337544,1.01113835,3198.9,3197.5,2.92153787]
[1768803337746,3.87452011,3198.8,3197.2,0.15645]
[1768803337940,1.83355024,3199.3,3197.3,4.918]
[1768803337941,3.87452011,3198.7,3197.3,4.918]
[1768803338140,2.86338176,3198.7,3197.3,4.918]
[1768803338345,2.86338176,3198.7,3197.2,0.15645]
[1768803338535,2.86338176,3198.7,3197.3,4.918]
[1768803343445,2.86338176,3198.7,3197.4,4.918]
[1768803344940,2.86338176,3198.7,3197.5,1.79]
[1768803345136,1.01193776,3198.6,3197.1,0.00469115]
[1768803345337,2.89493044,3198.4,3197.1,0.00469115]
[1768803345537,2.89493044,3198.2,3197.1,0.00469115]
[1768803345942,2.89493044,3198.2,3197.1,1.79469115]
[1768803346850,2.89493044,3198.0,3197.1,0.00469115]
[1768803347150,2.89493044,3198.0,3197.1,1.79469115]
[1768803347347,2.89493044,3198.0,3197.1,0.00469115]
[1768803350543,2.89493044,3197.8,3196.5,0.00276662]
[1768803350752,1.01165807,3197.7,3196.5,0.00276662]
[1768803351049,1.01165807,3197.6,3196.5,0.00276662]
[1768803351256,2.89493044,3197.7,3196.5,1.79276662]
[1768803351556,1.011424,3197.6,3196.5,1.79276662]
[1768803351850,2.89493044,3197.7,3196.5,1.79276662]
[1768803352046,1.01158821,3197.6,3196.5,1.79276662]
[1768803352241,0.00469115,3197.9,3196.5,1.79276662]
[1768803352450,1.0114223,3197.8,3196.5,4.53508553]
[1768803352656,1.0114223,3197.7,3196.5,1.79276662]
[1768803352851,0.00469115,3197.9,3196.7,1.04415116]
[1768803353161,3.82996515,3197.8,3196.7,1.79]
[1768803353351,1.01142607,3197.7,3196.7,1.79]
[1768803353548,2.81853908,3197.8,3196.7,1.79]
[1768803353855,1.01129706,3197.7,3196.7,1.79]
[1768803354049,2.81853908,3197.8,3196.5,1.04691778]
[1768803354244,1.0111846,3197.7,3196.5,1.04691778]
[1768803354452,3.86269024,3197.7,3196.6,1.79]
[1768803354650,3.86269024,3197.7,3196.5,0.00276662]
[1768803354849,3.86269024,3197.7,3196.6,1.79]
[1768803355050,3.86269024,3197.7,3196.5,0.00276662]
[1768803355255,3.86269024,3197.7,3196.6,1.79]
[1768803355550,3.86269024,3197.7,3196.5,0.00276662]
[1768803355757,3.86269024,3197.7,3196.5,1.79276662]
[1768803358756,2.81853908,3197.7,3196.5,1.79176662]
[1768803360758,2.81853908,3197.7,3196.6,1.04415116]
[1768803361855,2.81853908,3197.7,3196.8,1.04415116]
[1768803364047,2.81853908,3197.7,3196.6,1.04415116]
[1768803364756,2.81853908,3197.7,3196.5,1.79176662]
[1768803364965,2.81853908,3197.7,3196.6,1.04415116]
[1768803365757,2.81853908,3197.7,3196.0,1.04415116]
[1768803365758,1.11626351,3197.2,3194.4,7.25422281]
[1768803366062,1.04415116,3195.7,3194.3,0.15659]
[1768803366261,1.04415116,3195.7,3194.3,1.20074116]
[1768803366557,2.81853908,3195.8,3194.5,1.4714271]
[1768803366758,2.82102295,3195.8,3194.5,1.04689305]
[1768803366963,0.00469115,3195.3,3194.5,0.00274189]
[1768803367656,0.00469115,3195.3,3194.7,1.4714271]
[1768803367857,0.00469115,3195.3,3194.5,0.00274189]
[1768803368152,0.00469115,3195.3,3190.8,19.06864021]
[1768803368153,1.04415116,3195.0,3193.2,2.67632519]
[1768803368353,2.81853908,3194.4,3192.0,2.93302519]
[1768803368561,1.04415116,3193.0,3192.0,0.1]
[1768803368859,2.81853908,3194.2,3192.0,0.1]
[1768803369060,2.81853908,3194.0,3192.0,0.1]
[1768803369258,2.81853908,3193.8,3192.0,0.10331749]
[1768803369566,0.00469115,3192.8,3192.0,0.10331749]
[1768803369861,0.00469115,3192.8,3190.6,0.15677]
[1768803369862,2.97522908,3192.3,3188.3,2.67632519]
[1768803370056,2.81853908,3191.3,3189.1,2.67632519]
[1768803370363,2.81853908,3191.2,3188.7,3.129]
[1768803370555,2.81853908,3191.1,3188.2,2.8877724]
[1768803370754,2.81853908,3191.0,3188.5,2.67632519]
[1768803371268,2.82323774,3190.3,3188.2,0.00288524]
[1768803371468,0.00469866,3190.3,3188.3,2.67632519]
[1768803371768,0.00469866,3190.3,3188.5,2.67632519]
[1768803372155,2.82323774,3190.3,3188.2,0.00288524]
[1768803372349,2.82323774,3190.3,3188.3,1.4714271]
[1768803372867,2.82323774,3190.3,3188.5,1.4714271]
[1768803373170,2.82323774,3190.3,3187.7,0.15691]
[1768803373463,0.00469866,3190.3,3187.8,2.67632519]
[1768803373853,0.00469866,3190.3,3188.0,2.67632519]
[1768803374260,0.00469866,3190.3,3188.2,2.67632519]
[1768803374465,0.00469866,3190.3,3188.4,2.67632519]
[1768803374870,0.00469866,3190.3,3188.5,4.303]
[1768803375070,0.00469866,3190.3,3188.5,6.97932519]
[1768803375269,0.00469866,3190.3,3188.6,2.67632519]
[1768803375661,0.00469866,3190.3,3188.6,2.83319519]
[1768803375957,0.00469866,3190.3,3188.9,2.83318519]
[1768803376157,0.00469866,3190.3,3188.9,2.67632519]
[1768803376568,0.00469866,3190.3,3189.1,2.67632519]
[1768803376759,0.00469866,3190.3,3189.3,2.67632519]
[1768803377469,0.00469866,3190.3,3189.4,4.924]
[1768803377664,0.00469866,3190.3,3189.1,0.15685]
[1768803377863,0.00469866,3190.3,3189.2,2.67632519]
[1768803379064,0.00469866,3190.3,3189.3,7.60132519]
[1768803379272,0.00469866,3190.3,3189.4,4.925]
[1768803379470,0.00469866,3190.3,3189.4,7.60132519]
[1768803380062,0.00469866,3190.3,3189.5,2.67632519]
[1768803380562,0.00277921,3191.1,3189.6,0.00469866]